bitfinex-derivatives/quotes_BTCF0:USTF0_20240815
["timestamp","ask_amount","ask_price","bid_price","bid_amount"]
[1723757342235,1.27766226,57051.0,57050.0,0.7430594]
[1723757342531,0.35182226,57051.0,57050.0,0.7430594]
[1723757343522,0.323418,57051.0,57050.0,0.7430594]
[1723757343923,0.41084571,57051.0,57050.0,0.7430594]
[1723757344329,0.0884169,57051.0,57050.0,1.1038594]
[1723757346933,0.0858,57051.0,57050.0,1.11253571]
[1723757347327,0.07868125,57056.0,57053.0,0.043807]
[1723757347529,0.1565,57085.0,57055.0,0.53232284]
[1723757347530,0.04143852,57068.0,57055.0,0.53232284]
[1723757347727,0.0848,57077.0,57055.0,0.53232284]
[1723757347728,0.0848,57077.0,57067.0,0.87566989]
[1723757347931,0.06991803,57082.0,57076.0,0.3608]
[1723757348133,0.06991803,57082.0,57081.0,0.404586]
[1723757348134,0.0848,57082.0,57081.0,0.404586]
[1723757348436,0.2007,57095.0,57082.0,0.043785]
[1723757348437,0.0848,57085.0,57082.0,0.043785]
[1723757348638,0.0848,57085.0,57084.0,0.3608]
[1723757349130,0.07850299,57095.0,57084.0,0.88632]
[1723757349335,0.00858496,57095.0,57093.0,0.3608]
[1723757349526,0.06991803,57098.0,57093.0,0.3608]
[1723757349527,0.06991803,57100.0,57093.0,0.3608]
[1723757349721,0.0848,57097.0,57096.0,0.043774]
[1723757349935,0.00875795,57102.0,57096.0,0.043774]
[1723757350235,0.043767,57106.0,57098.0,0.3608]
[1723757350828,0.2118,57107.0,57098.0,0.3608]
[1723757350829,0.043768,57105.0,57098.0,0.3608]
[1723757351032,0.2118,57107.0,57098.0,0.3608]
[1723757351236,0.00881131,57109.0,57103.0,0.3608]
[1723757351433,0.43071803,57114.0,57108.0,0.3608]
[1723757351434,0.043762,57113.0,57108.0,0.3608]
[1723757352031,0.3608,57125.0,57112.0,0.043762]
[1723757352323,0.3608,57125.0,57109.0,0.3608]
[1723757352324,0.043751,57127.0,57117.0,0.3608]
[1723757352733,0.043751,57127.0,57122.0,0.3608]
[1723757354031,0.043751,57127.0,57125.0,0.3608]
[1723757355429,0.043751,57127.0,57125.0,0.3618]
[1723757356442,0.043751,57127.0,57125.0,0.3628]
[1723757357340,0.043751,57127.0,57116.0,0.0002627]
[1723757357341,1.09776,57126.0,57116.0,0.0002627]
[1723757357531,0.043758,57117.0,57116.0,0.0002627]
[1723757357932,0.968998,57117.0,57110.0,0.3608]
[1723757358133,0.2118,57113.0,57110.0,0.3608]
[1723757359126,0.043763,57111.0,57110.0,0.3608]
[1723757359529,0.569043,57111.0,57110.0,0.3608]
[1723757359836,0.043766,57107.0,57106.0,0.0002627]
[1723757360327,0.6957646,57118.0,57106.0,0.0002627]
[1723757360531,0.6957646,57118.0,57110.0,0.006]
[1723757360532,0.299326,57111.0,57110.0,0.006]
[1723757360828,0.766363,57111.0,57096.0,0.3608]
[1723757361032,0.043774,57097.0,57096.0,0.3608]
[1723757361432,0.569214,57097.0,57096.0,0.3608]
[1723757362340,0.569214,57097.0,57096.0,0.3618]
[1723757362741,0.569214,57097.0,57096.0,0.3628]
[1723757362942,1.181014,57097.0,57096.0,0.3628]
[1723757364036,1.224788,57097.0,57096.0,0.3628]
[1723757365545,1.244788,57097.0,57096.0,0.3628]
[1723757365839,1.224788,57097.0,57096.0,0.3628]
[1723757366444,1.230788,57097.0,57096.0,0.3628]
[1723757366951,1.23932456,57097.0,57096.0,0.3628]
[1723757367139,1.23932456,57097.0,57096.0,0.3618]
[1723757367448,1.23932456,57097.0,57096.0,0.3628]
[1723757367649,1.31932456,57097.0,57096.0,0.3628]
[1723757367846,0.043778,57092.0,57091.0,0.0002627]
[1723757368148,0.043778,57092.0,57085.0,0.3608]
[1723757368149,0.043782,57086.0,57085.0,0.3608]
[1723757370053,0.049782,57086.0,57085.0,0.3618]
[1723757370244,0.093564,57086.0,57085.0,0.001]
[1723757370445,0.103564,57086.0,57085.0,0.001]
[1723757370750,0.193564,57086.0,57085.0,0.001]
[1723757370944,0.720084,57086.0,57085.0,0.002]
[1723757371136,0.043786,57081.0,57080.0,0.0002627]
[1723757372248,0.615132,57081.0,57080.0,0.0012627]
[1723757372455,0.043791,57075.0,57071.0,0.3608]
[1723757373753,0.050791,57075.0,57074.0,0.00119375]
[1723757374049,1.12035621,57075.0,57074.0,1e-08]
[1723757374650,1.02035621,57075.0,57074.0,1e-08]
[1723757375049,1.02435621,57075.0,57074.0,0.00100001]
[1723757377062,0.043794,57070.0,57069.0,0.0002627]
[1723757378852,0.052794,57070.0,57069.0,0.0012627]
[1723757379361,0.062794,57070.0,57069.0,0.0012627]
[1723757379562,0.052794,57070.0,57069.0,0.0012627]
[1723757379757,0.578474,57070.0,57069.0,0.0012627]
[1723757380554,0.062794,57070.0,57069.0,0.0012627]
[1723757380760,0.588474,57070.0,57069.0,0.0012627]
[1723757382662,0.632268,57070.0,57069.0,0.0012627]
[1723757384755,0.043798,57066.0,57065.0,0.3608]
[1723757384950,0.34577073,57066.0,57065.0,0.3608]
[1723757385852,1.27149073,57066.0,57065.0,0.3608]
[1723757387160,1.27449073,57066.0,57065.0,0.3608]
[1723757387358,0.87449073,57066.0,57065.0,0.3608]
[1723757387566,0.91828873,57066.0,57065.0,0.3608]
[1723757388765,0.92523335,57066.0,57065.0,0.3608]
[1723757389673,0.92523335,57066.0,57060.0,0.0002627]
[1723757389674,0.043801,57061.0,57060.0,0.0002627]
[1723757389867,0.053801,57061.0,57060.0,0.0002627]
[1723757390964,0.053801,57061.0,57060.0,0.0022627]
[1723757391370,0.043801,57061.0,57060.0,0.0022627]
[1723757392070,0.043801,57061.0,57060.0,0.0072627]
[1723757394565,0.00711735,57066.0,57064.0,0.043799]
[1723757394566,0.00017273,57066.0,57064.0,0.043799]
[1723757394867,0.3214627,57071.0,57069.0,0.043795]
[1723757394868,0.0002627,57071.0,57069.0,0.043795]
[1723757395174,0.04379,57076.0,57070.0,0.62022257]
[1723757395371,0.00693184,57077.0,57075.0,0.3608]
[1723757395675,5.384e-05,57076.0,57075.0,0.404591]
[1723757395875,5.384e-05,57076.0,57075.0,0.45651357]
[1723757396271,0.0002627,57081.0,57075.0,0.3608]
[1723757396475,0.0002627,57081.0,57080.0,0.3608]
[1723757397373,0.0052627,57081.0,57080.0,0.43006989]
[1723757397568,0.0052627,57081.0,57080.0,0.36778272]
[1723757398068,0.0002627,57081.0,57080.0,0.36778272]
[1723757398268,0.0042627,57081.0,57080.0,1.29334272]
[1723757398675,0.0052627,57081.0,57080.0,1.50334272]
[1723757399186,0.0052627,57081.0,57080.0,1.55521791]
[1723757399477,0.043782,57087.0,57080.0,1.54712972]
[1723757399672,0.043782,57087.0,57086.0,0.3608]
[1723757400678,0.045782,57087.0,57086.0,0.3608]
[1723757401071,0.002,57087.0,57086.0,0.3608]
[1723757401269,0.0002627,57092.0,57086.0,0.3608]
[1723757401569,0.0002627,57092.0,57091.0,0.3608]
[1723757402777,0.0002627,57092.0,57091.0,0.36758769]
[1723757403080,0.0062627,57092.0,57091.0,0.36858769]
[1723757403486,0.0002627,57092.0,57091.0,0.36758769]
[1723757403676,0.0062627,57092.0,57091.0,0.36858769]
[1723757403877,0.0062627,57092.0,57091.0,0.36958769]
[1723757404879,0.0062627,57092.0,57091.0,0.3628]
[1723757405181,0.0062627,57092.0,57086.0,0.3608]
[1723757405182,0.043781,57087.0,57086.0,0.3608]
[1723757405376,0.255581,57087.0,57086.0,0.3608]
[1723757406579,0.299362,57087.0,57086.0,0.3608]
[1723757406777,0.043784,57084.0,57083.0,0.0002627]
[1723757406977,0.043784,57084.0,57083.0,0.3610627]
[1723757407886,0.043784,57084.0,57083.0,0.0002627]
[1723757407887,1.103128,57084.0,57083.0,0.0002627]
[1723757408185,0.043793,57072.0,57071.0,0.3608]
[1723757409389,0.044793,57072.0,57071.0,0.3608]
[1723757409884,0.045793,57072.0,57071.0,0.3608]
[1723757410085,0.047793,57072.0,57071.0,0.3608]
[1723757410879,0.047793,57072.0,57066.0,0.0002627]
[1723757410880,0.043797,57067.0,57066.0,0.0002627]
[1723757411090,0.255597,57067.0,57066.0,0.0002627]
[1723757411994,0.043803,57059.0,57058.0,0.3608]
[1723757413304,0.255603,57059.0,57058.0,0.3688]
[1723757414205,0.255603,57059.0,57058.0,0.013]
[1723757414594,0.781363,57059.0,57058.0,0.00777343]
[1723757415001,0.087612,57055.0,57053.0,0.0002627]
[1723757415198,0.043814,57044.0,57036.0,0.3608]
[1723757415405,0.043814,57044.0,57041.0,0.3608]
[1723757416308,0.043814,57044.0,57043.0,0.00815028]
[1723757417305,0.043814,57044.0,57043.0,0.01215028]
[1723757420006,0.043804,57058.0,57043.0,0.01215028]
[1723757420007,0.043803,57059.0,57049.0,0.04381]
[1723757420215,0.043803,57059.0,57058.0,0.3608]
[1723757420511,0.1979,57069.0,57058.0,0.3608]
[1723757420714,0.255598,57066.0,57065.0,0.3608]
[1723757422912,0.26246126,57066.0,57065.0,0.3608]
[1723757423117,0.27646126,57066.0,57065.0,0.3618]
[1723757423713,0.28246126,57066.0,57065.0,0.3628]
[1723757424316,0.28246126,57066.0,57065.0,0.002]
[1723757424504,0.28246126,57066.0,57065.0,0.001]
[1723757424505,0.27646126,57066.0,57065.0,0.001]
[1723757424811,0.043801,57061.0,57060.0,0.00026296]
[1723757426413,0.049801,57061.0,57060.0,0.00126296]
[1723757427412,0.049801,57061.0,57060.0,0.00226296]
[1723757427413,0.060801,57061.0,57060.0,0.00226296]
[1723757430613,0.070801,57061.0,57060.0,0.00226296]
[1723757434819,0.282601,57061.0,57060.0,0.00226296]
[1723757435825,0.282601,57061.0,57060.0,0.36306296]
[1723757438918,0.070801,57061.0,57060.0,0.36306296]
[1723757440020,0.065801,57061.0,57060.0,0.36306296]
[1723757441628,0.066801,57061.0,57060.0,0.36306296]
[1723757442721,0.066801,57061.0,57060.0,0.00226296]
[1723757442931,0.066801,57061.0,57060.0,0.36306296]
[1723757448130,0.066801,57061.0,57060.0,0.41493358]
[1723757448631,0.066801,57061.0,57060.0,0.36306296]
[1723757449131,0.13640045,57061.0,57060.0,0.36306296]
[1723757449724,0.13640045,57061.0,57060.0,0.43266575]
[1723757449923,0.13685989,57061.0,57060.0,0.43266575]
[1723757450131,0.066801,57061.0,57060.0,0.43266575]
[1723757450329,0.13686472,57061.0,57060.0,0.36306296]
[1723757450628,0.066801,57061.0,57060.0,0.36306296]
[1723757451924,0.066801,57061.0,57060.0,0.43267458]
[1723757452228,0.066801,57061.0,57060.0,0.36306296]
[1723757452825,0.065801,57061.0,57060.0,0.36306296]
[1723757453121,0.058801,57061.0,57060.0,0.36206296]
[1723757453321,0.064801,57061.0,57060.0,0.43267458]
[1723757453524,0.064801,57061.0,57060.0,0.36306296]
[1723757455933,0.064801,57061.0,57060.0,0.43267458]
[1723757456140,0.064801,57061.0,57060.0,0.36306296]
[1723757456726,0.064801,57061.0,57060.0,0.43267458]
[1723757457127,0.064801,57061.0,57060.0,0.36306296]
[1723757457328,0.064801,57061.0,57060.0,0.43267458]
[1723757457735,0.064801,57061.0,57060.0,0.36306296]
[1723757459221,0.15155634,57061.0,57060.0,0.36306296]
[1723757459721,0.15155634,57061.0,57060.0,0.41528463]
[1723757460042,0.15155634,57061.0,57060.0,0.4152855]
[1723757460524,0.15155634,57061.0,57060.0,0.36306296]
[1723757460723,0.15155634,57061.0,57060.0,0.41528515]
[1723757461533,0.064801,57061.0,57060.0,0.36306296]
[1723757464725,0.19535734,57061.0,57060.0,0.36306296]
[1723757465537,0.19535734,57061.0,57047.0,0.043812]
[1723757465538,0.043811,57048.0,57047.0,0.05224501]
[1723757465728,0.043811,57048.0,57043.0,0.0001509]
[1723757465729,0.087624,57047.0,57046.0,0.05224501]
[1723757465928,0.087624,57047.0,57044.0,0.05224501]
[1723757465929,0.5972,57047.0,57044.0,0.05224501]
[1723757466124,0.5972,57047.0,57043.0,0.05239529]
[1723757466125,0.043814,57044.0,57043.0,0.05239529]
[1723757466328,0.043814,57044.0,57043.0,0.00015028]
[1723757466329,0.087628,57044.0,57043.0,0.00015028]
[1723757466638,0.17509351,57044.0,57043.0,0.00015028]
[1723757467543,0.299428,57044.0,57043.0,0.00015028]
[1723757467832,0.309428,57044.0,57043.0,0.00015028]
[1723757468236,0.310428,57044.0,57043.0,0.01315028]
[1723757468636,0.310428,57044.0,57043.0,0.01015028]
[1723757468637,0.309428,57044.0,57043.0,0.01015028]
[1723757468837,0.310428,57044.0,57043.0,0.02015028]
[1723757469436,0.311428,57044.0,57043.0,0.01615028]
[1723757469635,0.043818,57039.0,57038.0,0.00026296]
[1723757470348,0.087636,57039.0,57038.0,0.00026296]
[1723757470641,0.14012635,57039.0,57038.0,0.00026296]
[1723757470837,0.14112635,57039.0,57038.0,0.01426296]
[1723757471232,0.14112635,57039.0,57029.0,0.0522804]
[1723757471233,0.087644,57034.0,57033.0,0.34880096]
[1723757472536,0.088644,57034.0,57033.0,0.35480096]
[1723757473334,0.088644,57034.0,57033.0,0.35680096]
[1723757474132,0.71177226,57034.0,57033.0,0.35680096]
[1723757474332,0.71177226,57034.0,57028.0,0.00017732]
[1723757474333,0.043826,57029.0,57028.0,0.00017732]
[1723757474537,0.2995836,57029.0,57028.0,0.00017732]
[1723757475044,0.3795836,57029.0,57028.0,3.2e-07]
[1723757475245,0.3795836,57029.0,57023.0,0.3608]
[1723757475246,0.08766,57024.0,57023.0,0.3608]
[1723757475642,0.08766,57024.0,57023.0,0.3236469]
[1723757475842,0.08766,57024.0,57015.0,0.3608]
[1723757475843,1.41071,57024.0,57015.0,0.3608]
[1723757476143,0.2118,57017.0,57015.0,0.3608]
[1723757476443,0.08782228,57016.0,57015.0,0.3608]
[1723757476743,0.66872228,57016.0,57015.0,0.3608]
[1723757478440,0.66972228,57016.0,57015.0,0.3738]
[1723757478634,0.76972228,57016.0,57015.0,0.3738]
[1723757478942,0.043842,57008.0,57007.0,0.00020937]
[1723757479144,0.04399228,57008.0,57007.0,0.00020937]
[1723757479340,0.08783428,57008.0,57007.0,0.00020937]
[1723757479536,0.17783428,57008.0,57007.0,0.00020937]
[1723757479739,0.08783428,57008.0,57007.0,0.00020937]
[1723757480044,1.11407428,57008.0,57007.0,3.7e-07]
[1723757480437,0.087692,57003.0,57002.0,0.3608]
[1723757480643,0.043847,57002.0,56997.0,0.3608]
[1723757480846,0.2118,56998.0,56997.0,0.3608]
[1723757481235,0.043858,56987.0,56986.0,0.3608]
[1723757481441,0.04404929,56987.0,56986.0,0.3608]
[1723757482953,0.04504929,56987.0,56986.0,0.3608]
[1723757483556,0.04604929,56987.0,56977.0,0.1996]
[1723757483842,0.04604929,56987.0,56974.0,0.3608]
[1723757483843,0.043866,56977.0,56974.0,0.3608]
[1723757484242,0.043867,56976.0,56974.0,0.3608]
[1723757485246,0.043867,56976.0,56974.0,0.368076]
[1723757485842,0.043867,56976.0,56974.0,0.007276]
[1723757486037,0.043867,56976.0,56973.0,0.3608]
[1723757486243,0.044867,56976.0,56973.0,0.3608]
[1723757486444,0.043868,56975.0,56973.0,0.3608]
[1723757486644,0.00019423,56974.0,56973.0,0.3608]
[1723757487445,0.043868,56975.0,56973.0,0.3608]
[1723757488150,0.001,56974.0,56973.0,0.3608]
[1723757488544,0.00116542,56974.0,56973.0,0.3608]
[1723757488744,0.00016542,56974.0,56973.0,0.3608]
[1723757488945,0.00016542,56974.0,56973.0,0.3638]
[1723757489742,0.00016542,56974.0,56973.0,0.3608]
[1723757489943,0.00116542,56974.0,56973.0,0.3638]
[1723757490546,0.00216542,56974.0,56973.0,0.3638]
[1723757492649,0.00216542,56974.0,56973.0,0.003]
[1723757493050,0.00216542,56974.0,56973.0,0.3638]
[1723757494956,0.04603342,56974.0,56973.0,0.3638]
[1723757501769,0.00216542,56974.0,56973.0,0.89036]
[1723757501971,0.00715177,56978.0,56974.0,0.043868]
[1723757502259,0.00715177,56978.0,56977.0,0.3608]
[1723757502656,0.00026319,56980.0,56977.0,0.3608]
[1723757503358,0.00026319,56980.0,56978.0,0.0522804]
[1723757503967,0.00744329,56980.0,56978.0,0.0522804]
[1723757504166,0.00844329,56980.0,56978.0,0.0522804]
[1723757504360,0.00844329,56980.0,56977.0,0.3608]
[1723757504557,0.00744329,56980.0,56977.0,0.3608]
[1723757504757,0.00844329,56980.0,56977.0,0.3608]
[1723757504958,0.001,56978.0,56977.0,0.3608]
[1723757505159,0.001,56978.0,56977.0,0.404666]
[1723757505363,0.001,56978.0,56977.0,1.331186]
[1723757505756,0.00944329,56980.0,56978.0,0.043865]
[1723757505959,0.00944329,56980.0,56977.0,0.45482737]
[1723757505960,0.00226319,56980.0,56977.0,0.45482737]
[1723757506157,0.3695866,57003.0,56985.0,0.043859]
[1723757506158,0.2118,56993.0,56985.0,0.043859]
[1723757506360,0.4086,57001.0,56989.0,0.3608]
[1723757506561,0.043849,56999.0,56997.0,0.41304032]
[1723757507059,0.043849,56999.0,56998.0,0.05224032]
[1723757507455,0.043849,56999.0,56997.0,0.3608]
[1723757507851,0.048849,56999.0,56997.0,0.3608]
[1723757508669,0.056849,56999.0,56997.0,0.3608]
[1723757508851,0.013,56999.0,56998.0,0.3608]
[1723757509362,0.008,56999.0,56998.0,0.44789921]
[1723757509557,0.015,56999.0,56998.0,0.44789921]
[1723757509760,0.015,56999.0,56998.0,0.58148864]
[1723757509956,0.015,56999.0,56998.0,1.10780864]
[1723757510151,0.006,56999.0,56998.0,1.10780864]
[1723757510356,0.009,56999.0,56998.0,0.3608]
[1723757510558,0.009,56999.0,56998.0,0.88712]
[1723757510757,0.008,56999.0,56998.0,0.88712]
[1723757510963,0.008,56999.0,56998.0,0.58148898]
[1723757511166,0.008,56999.0,56998.0,0.49174921]
[1723757511361,0.008,56999.0,56998.0,0.3608]
[1723757511552,0.006,56999.0,56998.0,0.3608]
[1723757511759,0.00026319,57004.0,56998.0,0.3608]
[1723757511967,0.004,56999.0,56998.0,0.3608]
[1723757512658,0.002,56999.0,56998.0,0.3608]
[1723757514169,0.045849,56999.0,56998.0,0.3608]
[1723757514563,0.045849,56999.0,56998.0,0.41299994]
[1723757514862,0.045849,56999.0,56993.0,0.00026319]
[1723757514863,1.01832,56999.0,56993.0,0.00026319]
[1723757515058,0.2118,56994.0,56993.0,0.00026319]
[1723757515266,0.255653,56994.0,56993.0,0.00026319]
[1723757516269,0.299506,56994.0,56993.0,0.00426319]
[1723757516674,0.300506,56994.0,56993.0,0.00426319]
[1723757517060,0.309506,56994.0,56993.0,0.00426319]
[1723757517266,0.312506,56994.0,56993.0,0.00426319]
[1723757518367,0.312506,56994.0,56988.0,0.3608]
[1723757518368,0.043857,56989.0,56988.0,0.3608]
[1723757519561,0.043857,56989.0,56988.0,0.3618]
[1723757520359,0.05151883,56989.0,56988.0,0.3618]
[1723757521465,0.26331883,56989.0,56988.0,0.3618]
[1723757522473,0.62411883,56989.0,56988.0,0.001]
[1723757522776,0.26331883,56989.0,56988.0,0.001]
[1723757523370,0.05151883,56989.0,56988.0,0.001]
[1723757524675,0.41231883,56989.0,56988.0,0.001]
[1723757525067,0.05151883,56989.0,56988.0,0.001]
[1723757527582,0.043857,56989.0,56988.0,0.001]
[1723757527877,0.2118,56997.0,56988.0,0.001]
[1723757527878,0.043853,56994.0,56988.0,0.001]
[1723757528177,0.043854,56993.0,56992.0,0.3608]
[1723757528375,0.167,56996.0,56988.0,0.001]
[1723757528376,0.17446028,56996.0,56988.0,0.001]
[1723757528676,0.043856,56990.0,56988.0,0.001]
[1723757529680,0.17446028,56996.0,56988.0,0.001]
[1723757529876,0.043857,56989.0,56988.0,0.001]
[1723757530078,0.043857,56989.0,56986.0,0.05219994]
[1723757530374,0.043857,56989.0,56988.0,0.05219994]
[1723757531665,0.043857,56989.0,56985.0,0.58062145]
[1723757531877,0.043857,56989.0,56988.0,0.05232304]
[1723757532179,0.043853,56994.0,56987.0,0.043858]
[1723757532368,0.043853,56994.0,56993.0,0.3608]
[1723757532968,0.21945205,56997.0,56993.0,0.3608]
[1723757532969,0.22696453,56997.0,56993.0,0.88716]
[1723757533178,0.17451248,56997.0,56994.0,0.05231848]
[1723757533374,0.17451248,56997.0,56993.0,0.3608]
[1723757533375,0.00751248,56997.0,56995.0,0.05231848]
[1723757533565,0.3713,56998.0,56995.0,0.05231848]
[1723757533970,0.2002,56998.0,56995.0,0.05231848]
[1723757534174,0.2002,56998.0,56996.0,0.05231848]
[1723757534374,0.007,56997.0,56995.0,0.043852]
[1723757534571,0.007,56997.0,56996.0,0.043851]
[1723757534868,0.05244483,57015.0,57004.0,0.043845]
[1723757535070,0.05243457,57036.0,57014.0,0.9334]
[1723757535277,0.05245494,57037.0,57035.0,0.3608]
[1723757535477,0.043815,57044.0,57035.0,0.404621]
[1723757535672,0.09626994,57044.0,57040.0,0.3608]
[1723757535873,0.46592561,57064.0,57040.0,0.3608]
[1723757535874,0.2118,57053.0,57040.0,0.3608]
[1723757536173,0.05271813,57048.0,57040.0,0.3608]
[1723757536971,0.009,57044.0,57040.0,0.3608]
[1723757537587,0.043812,57047.0,57040.0,0.3608]
[1723757537875,0.00926319,57048.0,57040.0,0.3608]
[1723757537876,0.02026319,57048.0,57046.0,0.043813]
[1723757538074,0.01126319,57048.0,57046.0,0.043813]
[1723757538266,0.01126319,57048.0,57047.0,0.52588]
[1723757538473,0.01126319,57048.0,57047.0,0.92588]
[1723757538875,0.1648,57071.0,57047.0,1.17152]
[1723757539068,0.17233552,57071.0,57065.0,0.3608]
[1723757539279,0.043786,57082.0,57070.0,0.3608]
[1723757539476,0.043786,57082.0,57081.0,0.3608]
[1723757539868,0.09624094,57082.0,57081.0,0.3608]
[1723757540384,0.11024094,57082.0,57081.0,0.3608]
[1723757540571,0.08045494,57082.0,57081.0,0.3618]
[1723757541271,0.014,57082.0,57081.0,0.3618]
[1723757541478,0.028,57082.0,57081.0,0.3618]
[1723757542676,0.028,57082.0,57081.0,1.28736]
[1723757543884,0.024,57082.0,57081.0,1.28736]
[1723757544186,0.01,57082.0,57081.0,1.28736]
[1723757544680,0.01,57082.0,57081.0,1.64816]
[1723757545277,0.001,57082.0,57081.0,1.64716]
[1723757545479,0.001,57082.0,57081.0,0.7216]
[1723757546789,0.043783,57085.0,57081.0,0.7216]
[1723757547088,0.001,57082.0,57081.0,0.7216]
[1723757547493,0.001,57082.0,57081.0,1.64716]
[1723757549781,0.001,57082.0,57081.0,1.24716]
[1723757549984,0.00026296,57087.0,57081.0,1.24716]
[1723757550290,0.001,57082.0,57081.0,0.3608]
[1723757550696,0.001,57082.0,57081.0,0.88636]
[1723757550888,0.05345494,57082.0,57080.0,0.3608]
[1723757551094,0.05245494,57081.0,57080.0,0.3608]
[1723757551283,0.09624094,57081.0,57080.0,0.3608]
[1723757552384,0.09624094,57081.0,57076.0,0.00026296]
[1723757552385,0.043789,57078.0,57076.0,0.00026296]
[1723757552579,0.05245494,57077.0,57076.0,0.00026296]
[1723757553684,0.404589,57078.0,57076.0,0.00026296]
[1723757553876,0.001,57077.0,57076.0,0.00026296]
[1723757554787,0.05845494,57077.0,57076.0,0.00026296]
[1723757554992,0.41925494,57077.0,57076.0,0.00026296]
[1723757555586,0.05845494,57077.0,57076.0,0.00026296]
[1723757556292,0.06245494,57077.0,57076.0,0.00026296]
[1723757556777,0.05745494,57077.0,57076.0,0.00026296]
[1723757556985,0.06045494,57077.0,57076.0,0.00026296]
[1723757557300,0.05945494,57077.0,57076.0,0.00026296]
[1723757558689,0.05945494,57077.0,57076.0,0.36106296]
[1723757558890,0.05945494,57077.0,57076.0,0.00026296]
[1723757559594,0.05745494,57077.0,57076.0,0.00026296]
[1723757560492,0.05945494,57077.0,57076.0,0.00026296]
[1723757564490,0.05945494,57077.0,57076.0,0.06990921]
[1723757564691,0.10324394,57077.0,57076.0,0.00026296]
[1723757564892,0.04191908,57077.0,57076.0,0.00026296]
[1723757565297,0.04191908,57077.0,57076.0,0.06946836]
[1723757565502,0.04191908,57077.0,57076.0,0.00026296]
[1723757566388,0.04191908,57077.0,57076.0,0.13368991]
[1723757566907,0.04191908,57077.0,57076.0,0.22044133]
[1723757567201,0.04191908,57077.0,57076.0,0.08701438]
[1723757567701,0.40271908,57077.0,57076.0,0.08701438]
[1723757568202,0.40271908,57077.0,57076.0,0.13369358]
[1723757570303,0.40031055,57077.0,57076.0,0.13369358]
[1723757571104,0.40031055,57077.0,57076.0,0.23784694]
[1723757571404,0.157,57080.0,57076.0,0.13369358]
[1723757571607,0.157,57080.0,57077.0,0.2375826]
[1723757571798,0.157,57080.0,57078.0,0.2375826]
[1723757572103,0.157,57080.0,57079.0,0.2375826]
[1723757572489,0.157,57080.0,57079.0,0.13343062]
[1723757572691,0.157,57080.0,57079.0,0.2375826]
[1723757572896,0.00026296,57087.0,57079.0,0.2375826]
[1723757572897,0.00026296,57087.0,57079.0,0.23755904]
[1723757573092,0.00026296,57087.0,57086.0,0.10412842]
[1723757573295,0.00026296,57087.0,57086.0,0.23755904]
[1723757573501,0.00026296,57087.0,57086.0,0.13343062]
[1723757573700,0.00771035,57088.0,57086.0,0.295788]
[1723757573901,0.1512,57095.0,57087.0,0.65654371]
[1723757574205,0.1512,57095.0,57094.0,0.08672186]
[1723757574206,0.204975,57095.0,57094.0,0.08672186]
[1723757574407,0.204975,57095.0,57094.0,0.2201045]
[1723757574607,0.204975,57095.0,57094.0,0.08672186]
[1723757574905,0.204975,57095.0,57093.0,0.08671212]
[1723757574906,0.043776,57094.0,57093.0,0.08671212]
[1723757575407,0.043776,57094.0,57092.0,0.08670625]
[1723757576695,0.043778,57092.0,57090.0,0.08670625]
[1723757576903,0.043779,57090.0,57089.0,0.08696896]
[1723757577806,0.043779,57090.0,57089.0,0.00026271]
[1723757578910,0.043787,57080.0,57079.0,0.3608]
[1723757579099,0.043787,57080.0,57079.0,0.49421182]
[1723757579909,0.00026271,57085.0,57079.0,0.49421355]
[1723757580103,0.043786,57081.0,57080.0,0.22019841]
[1723757580706,0.043786,57081.0,57078.0,0.08680865]
[1723757580707,1.58816,57081.0,57078.0,0.08680865]
[1723757580904,0.043788,57078.0,57077.0,0.08680865]
[1723757581305,0.043788,57078.0,57076.0,0.08680865]
[1723757582205,0.043788,57078.0,57074.0,0.00026271]
[1723757582206,0.043788,57078.0,57077.0,0.08680865]
[1723757582613,0.043788,57078.0,57076.0,0.08680865]
[1723757582808,0.052788,57078.0,57077.0,0.08680865]
[1723757583003,0.052788,57078.0,57076.0,0.08680865]
[1723757583214,0.058788,57078.0,57076.0,0.08780865]
[1723757583512,0.055788,57078.0,57076.0,0.001]
[1723757583914,0.055788,57078.0,57074.0,0.08707136]
[1723757583915,0.04379,57076.0,57075.0,0.08680865]
[1723757584113,0.04379,57076.0,57075.0,0.2202324]
[1723757584412,0.04379,57076.0,57075.0,0.13342375]
[1723757584615,0.04379,57076.0,57075.0,0.2201712]
[1723757585009,0.04379,57076.0,57075.0,0.22016934]
[1723757585414,0.04379,57076.0,57074.0,0.08701016]
[1723757585714,0.04379,57076.0,57074.0,0.00026271]
[1723757586511,0.04879,57076.0,57074.0,0.00026271]
[1723757586716,0.05279,57076.0,57074.0,0.00026271]
[1723757587115,0.04379,57076.0,57074.0,0.00026271]
[1723757587311,0.04379,57076.0,57074.0,0.08801016]
[1723757587312,0.05579,57076.0,57074.0,0.08801016]
[1723757587509,0.05579,57076.0,57074.0,0.00126271]
[1723757587710,0.24579,57076.0,57074.0,0.00126271]
[1723757587911,0.043791,57075.0,57074.0,0.00126271]
[1723757589120,0.043791,57075.0,57074.0,0.05325763]
[1723757589413,0.133791,57075.0,57074.0,0.00026271]
[1723757589921,0.139791,57075.0,57074.0,0.00026271]
[1723757590125,0.671431,57075.0,57074.0,0.00126271]
[1723757590417,0.67943264,57075.0,57074.0,0.00126271]
[1723757591810,0.68043264,57075.0,57074.0,0.00126271]
[1723757592011,1.04123264,57075.0,57074.0,0.00126271]
[1723757592613,1.04523264,57075.0,57074.0,0.00126271]
[1723757593313,0.99702364,57075.0,57074.0,0.00126271]
[1723757593514,0.99102364,57075.0,57074.0,0.00026271]
[1723757593714,0.99702364,57075.0,57074.0,0.00126271]
[1723757593912,0.98802364,57075.0,57074.0,0.00126271]
[1723757594113,0.99902364,57075.0,57074.0,0.00126271]
[1723757595118,0.99302364,57075.0,57074.0,0.00026271]
[1723757595309,0.99902364,57075.0,57074.0,0.00126271]
[1723757595513,0.99702364,57075.0,57074.0,0.00126271]
[1723757596219,0.99902364,57075.0,57074.0,0.00126271]
[1723757596622,0.98802364,57075.0,57074.0,0.00126271]
[1723757596823,1.00802364,57075.0,57074.0,0.00126271]